fUSD/lending_fUSD_20260422
["ID","MTS","AMOUNT","RATE_DAILY","PERIOD"]
[420965623,1776817832391,-150.7678493,8.063e-05,2]
[420965624,1776817832400,-151.03186045,8.063e-05,2]
[420965625,1776817832410,-150.0,8.063e-05,2]
[420965626,1776817832419,-132.38922533,8.063e-05,2]
[420965627,1776817832431,-17.61077467,8.063e-05,2]
[420965628,1776817832440,-150.0,8.063e-05,2]
[420965629,1776817832449,-201.51350491,8.063e-05,2]
[420965630,1776817832460,-150.0,8.063e-05,2]
[420965631,1776817832469,-150.0,8.063e-05,2]
[420965632,1776817832480,-2000.0,8.219e-05,2]
[420965633,1776817832489,-210.27,8.219e-05,2]
[420965634,1776817832500,-150.0,8.259e-05,2]
[420965635,1776817832509,-2182.09864975,8.26e-05,2]
[420965636,1776817832521,-577.69225892,8.26e-05,2]
[420965637,1776817832533,-3701.3,8.26e-05,2]
[420965638,1776817832560,-13.66909133,8.26e-05,2]
[420965639,1776817832574,-200.0,8.305e-05,2]
[420965641,1776817832584,-150.0,8.362e-05,2]
[420965642,1776817832593,-150.0,8.362e-05,2]
[420965643,1776817832602,-150.0,8.511e-05,2]
[420965644,1776817832611,-150.0,8.511e-05,2]
[420965645,1776817832621,-150.0,8.511e-05,2]
[420965646,1776817832630,-250.0,8.608e-05,2]
[420965647,1776817832640,-250.0,8.608e-05,2]
[420965648,1776817832650,-9575.09,8.649e-05,2]
[420965649,1776817832661,-150.0,8.66e-05,2]
[420965650,1776817832671,-150.0,8.66e-05,2]
[420965651,1776817832680,-166.39105159,8.743e-05,2]
[420965652,1776817832690,-362.00417451,8.743e-05,2]
[420965653,1776817832699,-500.0,8.743e-05,2]
[420965654,1776817832709,-500.0,8.743e-05,2]
[420965656,1776817832718,-500.0,8.743e-05,2]
[420965658,1776817832728,-312.67777592,8.743e-05,2]
[420965660,1776817832738,-500.29614553,8.743e-05,2]
[420965661,1776817832747,-500.0,8.743e-05,2]
[420965662,1776817832757,-500.0,8.743e-05,2]
[420965663,1776817832766,-521.57565016,8.759e-05,2]
[420965665,1776817832775,-500.0,8.759e-05,2]
[420965667,1776817832784,-254.49167137,8.759e-05,2]
[420965668,1776817832794,-185.9532369,8.759e-05,2]
[420965669,1776817832803,-409.64029171,8.759e-05,2]
[420965670,1776817832812,-451.68745953,8.759e-05,2]
[420965671,1776817832821,-165.88745658,8.759e-05,2]
[420965672,1776817832831,-500.0,8.759e-05,2]
[420965673,1776817832841,-391.17663502,8.759e-05,2]
[420965674,1776817832850,-500.0,8.759e-05,2]
[420965675,1776817832859,-500.0,8.759e-05,2]
[420965676,1776817832869,-500.0,8.759e-05,2]
[420965677,1776817832878,-500.0,8.759e-05,2]
[420965678,1776817832887,-500.0,8.759e-05,2]
[420965679,1776817832897,-500.0,8.759e-05,2]
[420965680,1776817832906,-500.0,8.759e-05,2]
[420965681,1776817832915,-500.0,8.759e-05,2]
[420965682,1776817832924,-500.0,8.759e-05,2]
[420965683,1776817832934,-500.0,8.759e-05,2]
[420965684,1776817832943,-500.0,8.759e-05,2]
[420965685,1776817832952,-500.0,8.759e-05,2]
[420965686,1776817832962,-229.52644091,8.759e-05,2]
[420965687,1776817832975,-500.0,8.759e-05,2]
[420965688,1776817832984,-449152.87083432,8.76e-05,2]
[420965689,1776817832996,-43035.79792531,8.76e-05,2]
[420965690,1776817833009,-1254.41808677,8.76e-05,2]
[420965691,1776817833075,-931.70372915,8.76e-05,2]
[420965692,1776817833111,-627909.89499239,8.76e-05,2]
[420965800,1776817840541,-377715.31443206,8.76e-05,2]
[420965801,1776817840551,-2272.3637,8.76e-05,2]
[420965802,1776817840560,-174.05,8.766e-05,2]
[420965803,1776817840569,-500.0,8.8e-05,3]
[420965804,1776817840579,-500.0,8.82e-05,2]
[420965805,1776817840588,-193.0,8.82e-05,2]
[420965806,1776817840598,-151.0,8.857e-05,2]
[420965807,1776817840607,-690.45804203,8.858e-05,2]
[420965808,1776817840617,-1150.91933859,8.859e-05,3]
[420965809,1776817840627,-1093.91752428,8.859e-05,3]
[420965810,1776817840636,-3373.588,8.859e-05,2]
[420965811,1776817840645,-210.737,8.859e-05,2]
[420965812,1776817840655,-2645.31648015,8.862e-05,2]
[420965813,1776817840664,-420.0,8.868e-05,2]
[420965814,1776817840673,-1680.0,8.868e-05,2]
[420965815,1776817840683,-300.0,8.868e-05,2]
[420965816,1776817840694,-300.0,8.868e-05,2]
[420965817,1776817840703,-1100.0,8.9e-05,3]
[420965818,1776817840712,-500.0,8.943e-05,2]
[420965819,1776817840722,-500.0,8.943e-05,2]
[420965820,1776817840731,-151.0,8.957e-05,2]
[420965821,1776817840740,-151.0,8.957e-05,2]
[420965822,1776817840750,-290.52897819,8.959e-05,2]
[420965823,1776817840759,-299.99999999,8.959e-05,2]
[420965824,1776817840768,-150.0,8.959e-05,2]
[420965825,1776817840778,-271.31136749,8.959e-05,2]
[420965826,1776817840787,-150.62053055,8.959e-05,2]
[420965827,1776817840796,-212.24616,8.959e-05,2]
[420965828,1776817840806,-397.53432266,8.96e-05,2]
[420965829,1776817840815,-1976.39652943,8.96e-05,2]
[420965830,1776817840824,-4424.25155096,8.96e-05,2]
[420965831,1776817840833,-302.0,8.96e-05,3]
[420965832,1776817840842,-155.0,8.96e-05,3]
[420965833,1776817840851,-156.0,8.96e-05,3]
[420965834,1776817840861,-1700.0,9e-05,3]
[420965835,1776817840870,-2233.73983343,9.006e-05,2]
[420965836,1776817840880,-1600.0,9.064e-05,2]
[420965837,1776817840890,-255.0,9.085e-05,2]
[420965838,1776817840899,-174.05,9.128e-05,2]
[420965839,1776817840908,-162.83,9.169e-05,2]
[420965840,1776817840917,-2000.0,9.247e-05,2]
[420965841,1776817840927,-191.05,9.258e-05,2]
[420965842,1776817840936,-1000.0,9.291e-05,2]
[420965843,1776817840945,-1000.0,9.291e-05,2]
[420965844,1776817840955,-1000.0,9.291e-05,2]
[420965845,1776817840964,-500.0,9.291e-05,2]
[420965846,1776817840973,-174.05,9.49e-05,2]
[420965847,1776817840983,-500.0,9.491e-05,2]
[420965848,1776817840992,-250.0,9.536e-05,2]
[420965849,1776817841002,-302.0,9.646e-05,3]
[420965850,1776817841011,-252.90410591,9.656e-05,2]
[420965851,1776817841020,-255185.9481313,9.666e-05,2]
[420965852,1776817841029,-12650.4203912,9.666e-05,2]
[420965853,1776817841038,-151.0,9.666e-05,2]
[420965854,1776817841047,-5545.3310927,9.666e-05,2]
[420965855,1776817841056,-392.086717,9.666e-05,2]
[420965856,1776817841065,-392.086717,9.666e-05,2]
[420965857,1776817841075,-392.086717,9.666e-05,2]
[420965858,1776817841084,-392.086717,9.666e-05,2]
[420965859,1776817841093,-151.0,9.666e-05,2]
[420965860,1776817841102,-3923.7720357,9.666e-05,2]
[420965861,1776817841111,-2351.0,9.755e-05,2]
[420965862,1776817841120,-1500.0,9.838e-05,2]
[420965863,1776817841129,-506.06962832,9.838e-05,2]
[420965864,1776817841138,-174.05,9.852e-05,2]
[420965865,1776817841149,-433.0,9.993e-05,2]
[420965866,1776817841158,-201.95343748,0.0001,2]
[420965867,1776817841167,-201.95343748,0.0001,2]
[420965868,1776817841176,-201.95343748,0.0001,2]
[420965869,1776817841185,-369.00209572,0.0001,2]
[420965870,1776817841194,-200.0,0.0001,2]
[420965871,1776817841203,-151.0,0.0001,2]
[420965872,1776817841212,-500.0,0.0001,2]
[420965873,1776817841221,-151.0,0.0001,2]
[420965874,1776817841230,-500.0,0.0001,2]
[420965875,1776817841239,-151.0,0.0001,2]
[420965876,1776817841248,-500.0,0.0001,2]
[420965877,1776817841257,-151.0,0.0001,2]
[420965878,1776817841266,-500.0,0.0001,2]
[420965879,1776817841276,-151.0,0.0001,2]
[420965880,1776817841285,-500.0,0.0001,2]
[420965881,1776817841294,-151.0,0.0001,2]
[420965882,1776817841303,-500.0,0.0001,2]
[420965883,1776817841313,-151.0,0.0001,2]
[420965884,1776817841322,-500.0,0.0001,2]
[420965885,1776817841331,-151.0,0.0001,2]
[420965886,1776817841340,-500.0,0.0001,2]
[420965887,1776817841349,-151.0,0.0001,2]
[420965888,1776817841359,-500.0,0.0001,2]
[420965889,1776817841367,-151.0,0.0001,2]
[420965890,1776817841377,-500.0,0.0001,2]
[420965891,1776817841386,-500.0,0.0001,2]
[420965892,1776817841395,-151.0,0.0001,2]
[420965893,1776817841404,-2300.0,0.0001,3]
[420965894,1776817841413,-151.0,0.0001,2]
[420965895,1776817841422,-151.0,0.0001,2]
[420965896,1776817841432,-206.37309139,0.0001,2]
[420965897,1776817841441,-151.0,0.0001,2]
[420965898,1776817841450,-151.0,0.0001,2]
[420965899,1776817841460,-151.0,0.0001,2]
[420965900,1776817841469,-311.37944818,0.0001,2]
[420965901,1776817841478,-173.57756647,0.0001,2]
[420965902,1776817841489,-151.0,0.00010054,2]
[420965903,1776817841498,-1600.0,0.00010071,2]
[420965904,1776817841507,-162.83,0.00010086,2]
[420965905,1776817841517,-578.20924308,0.00010147,2]
[420965906,1776817841526,-500.0,0.00010147,2]
[420965907,1776817841535,-1428.38747117,0.00010147,2]
[420965908,1776817841544,-721.12765535,0.00010147,2]
[420965909,1776817841553,-151.0,0.00010147,2]
[420965910,1776817841563,-174.61919141,0.00010147,2]
[420965911,1776817841573,-209.40437684,0.00010147,2]
[420965912,1776817841582,-235.75327194,0.00010147,2]
[420965913,1776817841592,-244.476143,0.00010147,2]
[420965914,1776817841601,-253.52176029,0.00010147,2]
[420965915,1776817841610,-262.90206542,0.00010147,2]
[420965916,1776817841620,-272.62944185,0.00010147,2]
[420965917,1776817841629,-282.71673119,0.00010147,2]
[420965918,1776817841638,-293.17725025,0.00010147,2]
[420965919,1776817841648,-304.02480851,0.00010147,2]
[420965920,1776817841657,-315.27372642,0.00010147,2]
[420965921,1776817841666,-326.9388543,0.00010147,2]
[420965922,1776817841675,-339.03559191,0.00010147,2]
[420965923,1776817841684,-174.05,0.00010213,2]
[420965924,1776817841693,-2000.0,0.00010274,2]
[420965925,1776817841702,-302.0,0.00010333,3]
[420965926,1776817841712,-40182.37959448,0.0001034,2]
[420965927,1776817841721,-392.086717,0.0001034,2]
[420965928,1776817841730,-392.086717,0.0001034,2]
[420965929,1776817841740,-392.086717,0.0001034,2]
[420965930,1776817841749,-392.086717,0.0001034,2]
[420965931,1776817841759,-151.0,0.0001034,2]
[420965932,1776817841768,-274.43,0.00010376,2]
[420965933,1776817841778,-1219.0,0.00010376,2]
[420965934,1776817841788,-1048.0,0.00010376,2]
[420965935,1776817841797,-1313.367,0.00010376,2]
[420965936,1776817841806,-6031.0,0.00010376,2]
[420965937,1776817841816,-416.0,0.00010376,2]
[420965938,1776817841825,-396.38901845,0.00010386,2]
[420965939,1776817841834,-369.00209571,0.00010403,2]
[420965940,1776817841843,-200.0,0.00010435,2]
[420965941,1776817841852,-200.0,0.00010435,2]
[420965942,1776817841861,-200.0,0.00010435,2]
[420965943,1776817841870,-1532.0,0.00010435,2]
[420965944,1776817841879,-1532.0,0.00010435,2]
[420965945,1776817841888,-159.35053257,0.00010435,2]
[420965946,1776817841898,-1532.0,0.00010435,2]
[420965947,1776817841907,-1532.0,0.00010435,2]
[420965948,1776817841916,-153.15041052,0.00010435,2]
[420965949,1776817841926,-1532.0,0.00010435,2]
[420965950,1776817841935,-497.03816368,0.00010435,2]
[420965951,1776817841944,-500.0,0.00010435,2]
[420965952,1776817841954,-200.0,0.00010435,2]
[420965953,1776817841963,-250.0,0.00010438,2]
[420965954,1776817841973,-530.0,0.00010512,5]
[420965955,1776817841983,-585.0,0.00010512,5]
[420965956,1776817841992,-655.0,0.00010512,5]
[420965957,1776817842001,-250.0,0.00010527,2]
[420965958,1776817842011,-200.0,0.00010539,2]
[420965959,1776817842020,-200.0,0.00010539,2]
[420965960,1776817842029,-200.0,0.00010539,2]
[420965961,1776817842038,-200.0,0.00010539,2]
[420965962,1776817842047,-200.0,0.00010548,2]
[420965963,1776817842056,-334.41703,0.0001059,2]
[420965964,1776817842065,-334.41703,0.0001059,2]
[420965965,1776817842074,-151.0,0.00010597,2]
[420965966,1776817842083,-5530.0,0.000106,5]
[420965967,1776817842093,-200.0,0.000106,2]
[420965968,1776817842102,-20936.24219337,0.00010629,2]
[420965969,1776817842112,-200.0,0.00010645,2]
[420965970,1776817842121,-200.0,0.00010645,2]
[420965971,1776817842129,-200.0,0.00010645,2]
[420965972,1776817842138,-200.0,0.00010645,2]
[420965973,1776817842148,-250.0,0.00010658,2]
[420965974,1776817842158,-250.0,0.00010658,2]
[420965975,1776817842168,-350.0,0.00010658,2]
[420965976,1776817842178,-151.0,0.00010687,2]
[420965977,1776817842187,-151.0,0.00010687,2]
[420965978,1776817842196,-157749.48752393,0.0001069,3]
[420965979,1776817842205,-161.0,0.0001069,2]
[420965980,1776817842216,-161.0,0.0001069,2]
[420965981,1776817842225,-392.086717,0.0001069,2]
[420965982,1776817842234,-392.086717,0.0001069,2]
[420965983,1776817842243,-392.086717,0.0001069,2]
[420965984,1776817842252,-392.086717,0.0001069,2]
[420965985,1776817842261,-300.4189488,0.0001069,2]
[420965986,1776817842271,-300.0,0.0001069,2]
[420965987,1776817842280,-300.0,0.0001069,2]
[420965988,1776817842289,-1481.23780761,0.00010695,2]
[420965989,1776817842299,-181.08010149,0.00010695,2]
[420965990,1776817842308,-151.0,0.00010697,2]
[420965991,1776817842317,-155.353,0.00010699,2]
[420965992,1776817842327,-363447.31212639,0.000107,2]
[420965993,1776817842336,-150.0,0.000107,2]
[420965994,1776817842346,-796.5387856,0.000107,2]
[420965995,1776817842355,-1000.0,0.000107,2]
[420965996,1776817842364,-1000.0,0.000107,2]
[420965997,1776817842373,-1000.0,0.000107,2]
[420965998,1776817842382,-1000.0,0.000107,2]
[420965999,1776817842391,-1000.0,0.000107,2]
[420966000,1776817842401,-440.6,0.000107,2]
[420966001,1776817842411,-151.0,0.000107,2]
[420966002,1776817842420,-506.11547483,0.000107,2]
[420966003,1776817842430,-334.41702,0.000107,2]
[420966004,1776817842439,-334.41703,0.000107,2]
[420966005,1776817842449,-334.41703,0.000107,2]
[420966006,1776817842458,-334.41703,0.000107,2]
[420966007,1776817842468,-392.086717,0.000107,2]
[420966008,1776817842477,-392.086717,0.000107,2]
[420966009,1776817842486,-392.086717,0.000107,2]
[420966010,1776817842495,-392.086717,0.000107,2]
[420966011,1776817842504,-307.0,0.000107,2]
[420966012,1776817842514,-999.16301263,0.000107,2]
[420966013,1776817842523,-1000.0,0.000107,2]
[420966014,1776817842532,-1514.23168007,0.000107,2]
[420966015,1776817842543,-313.0,0.000107,2]
[420966016,1776817842552,-2041.04907455,0.000107,2]
[420966017,1776817842562,-2872.0,0.00010731,2]
[420966018,1776817842572,-200.0,0.00010751,2]
[420966019,1776817842582,-200.0,0.00010751,2]
[420966020,1776817842591,-200.0,0.00010751,2]
[420966021,1776817842601,-200.0,0.00010751,2]
[420966022,1776817842611,-696.27721197,0.0001078,2]
[420966023,1776817842621,-200.0,0.00010859,2]
[420966024,1776817842631,-200.0,0.00010859,2]
[420966025,1776817842640,-200.0,0.00010859,2]
[420966026,1776817842650,-200.0,0.00010859,2]
[420966027,1776817842660,-151.0,0.00010882,2]
[420966028,1776817842669,-2822.6903278,0.0001089,2]
[420966029,1776817842679,-1871.78499991,0.000109,2]
[420966030,1776817842688,-1871.78499988,0.000109,2]
[420966031,1776817842698,-1871.78499988,0.000109,2]
[420966032,1776817842707,-1871.78499988,0.000109,2]
[420966033,1776817842717,-1871.78499988,0.000109,2]
[420966034,1776817842727,-2900.0,0.000109,3]
[420966035,1776817842736,-490.01363524,0.00010949,2]
[420966036,1776817842745,-200.0,0.00010959,2]
[420966037,1776817842755,-200.0,0.00010959,2]
[420966038,1776817842764,-200.0,0.00010959,2]
[420966039,1776817842774,-500.0,0.00010959,2]
[420966040,1776817842783,-3240.0,0.00010959,2]
[420966041,1776817842792,-151.0,0.00010959,2]
[420966042,1776817842801,-151.0,0.00010959,2]
[420966043,1776817842810,-151.0,0.00010959,2]
[420966044,1776817842819,-151.0,0.00010959,2]
[420966045,1776817842829,-151.0,0.00010959,2]
[420966046,1776817842838,-151.0,0.00010959,2]
[420966047,1776817842847,-151.0,0.00010959,2]
[420966048,1776817842856,-151.0,0.00010959,2]
[420966049,1776817842864,-151.0,0.00010959,2]
[420966050,1776817842873,-151.0,0.00010959,2]
[420966051,1776817842882,-151.0,0.00010959,2]
[420966052,1776817842891,-151.0,0.00010959,2]
[420966053,1776817842901,-151.0,0.00010959,2]
[420966054,1776817842910,-151.0,0.00010959,2]
[420966079,1776817842919,-151.0,0.00010959,2]
[420966081,1776817843306,-151.0,0.00010959,2]
[420966082,1776817843316,-151.0,0.00010959,2]
[420966083,1776817843326,-151.0,0.00010959,2]
[420966084,1776817843335,-151.0,0.00010959,2]
[420966085,1776817843345,-151.0,0.00010959,2]
[420966086,1776817843354,-151.0,0.00010959,2]
[420966087,1776817843363,-151.0,0.00010959,2]
[420966088,1776817843372,-151.0,0.00010959,2]
[420966089,1776817843382,-151.0,0.00010959,2]
[420966090,1776817843391,-156.060993,0.00010959,2]
[420966091,1776817843400,-3477.93,0.00010959,2]
[420966092,1776817843409,-150.0,0.00010959,2]
[420966093,1776817843418,-200.0,0.00010959,2]
[420966094,1776817843428,-200.0,0.00010959,2]
[420966095,1776817843437,-200.0,0.00010959,2]
[420966096,1776817843447,-200.0,0.00010959,2]
[420966097,1776817843456,-200.0,0.00010959,2]
[420966098,1776817843465,-200.0,0.00010959,2]
[420966099,1776817843475,-200.0,0.00010959,2]
[420966100,1776817843484,-200.0,0.00010959,2]
[420966101,1776817843494,-200.0,0.00010959,2]
[420966102,1776817843503,-200.0,0.00010959,2]
[420966103,1776817843512,-200.0,0.00010959,2]
[420966104,1776817843522,-200.0,0.00010959,2]
[420966105,1776817843531,-200.0,0.00010959,2]
[420966106,1776817843540,-200.0,0.00010959,2]
[420966107,1776817843550,-200.0,0.00010959,2]
[420966108,1776817843560,-200.0,0.00010959,2]
[420966109,1776817843570,-200.0,0.00010959,2]
[420966110,1776817843579,-200.0,0.00010959,2]
[420966111,1776817843588,-200.0,0.00010959,2]
[420966112,1776817843598,-200.0,0.00010959,2]
[420966113,1776817843607,-200.0,0.00010959,2]
[420966114,1776817843616,-200.0,0.00010959,2]
[420966115,1776817843626,-200.0,0.00010959,2]
[420966116,1776817843635,-200.0,0.00010959,2]
[420966117,1776817843645,-200.0,0.00010959,2]
[420966118,1776817843654,-200.0,0.00010959,2]
[420966119,1776817843664,-200.0,0.00010959,2]
[420966120,1776817843673,-200.0,0.00010959,2]
[420966122,1776817843683,-200.0,0.00010959,2]
[420966124,1776817843692,-200.0,0.00010959,2]
[420966125,1776817843702,-200.0,0.00010959,2]
[420966126,1776817843711,-200.0,0.00010959,2]
[420966127,1776817843721,-200.0,0.00010959,2]
[420966128,1776817843730,-200.0,0.00010959,2]
[420966130,1776817843740,-200.0,0.00010959,2]
[420966132,1776817843749,-200.0,0.00010959,2]
[420966134,1776817843758,-200.0,0.00010959,2]
[420966135,1776817843767,-200.0,0.00010959,2]
[420966136,1776817843777,-200.0,0.00010959,2]
[420966137,1776817843786,-200.0,0.00010959,2]
[420966138,1776817843795,-200.0,0.00010959,2]
[420966139,1776817843805,-200.0,0.00010959,2]
[420966140,1776817843814,-200.0,0.00010959,2]
[420966141,1776817843824,-200.0,0.00010959,2]
[420966142,1776817843833,-200.0,0.00010959,2]
[420966143,1776817843842,-200.0,0.00010959,2]
[420966144,1776817843852,-200.0,0.00010959,2]
[420966145,1776817843861,-200.0,0.00010959,2]
[420966147,1776817843870,-200.0,0.00010959,2]
[420966148,1776817843880,-200.0,0.00010959,2]
[420966149,1776817843889,-200.0,0.00010959,2]
[420966150,1776817843898,-200.0,0.00010959,2]
[420966152,1776817843908,-200.0,0.00010959,2]
[420966154,1776817843917,-200.0,0.00010959,2]
[420966156,1776817843926,-200.0,0.00010959,2]
[420966157,1776817843935,-200.0,0.00010959,2]
[420966158,1776817843944,-200.0,0.00010959,2]
[420966159,1776817843954,-200.0,0.00010959,2]
[420966160,1776817843963,-200.0,0.00010959,2]
[420966161,1776817843972,-200.0,0.00010959,2]
[420966162,1776817843981,-200.0,0.00010959,2]
[420966163,1776817843991,-200.0,0.00010959,2]
[420966164,1776817844001,-200.0,0.00010959,2]
[420966165,1776817844011,-200.0,0.00010959,2]
[420966166,1776817844020,-200.0,0.00010959,2]
[420966167,1776817844029,-200.0,0.00010959,2]
[420966168,1776817844039,-200.0,0.00010959,2]
[420966169,1776817844048,-200.0,0.00010959,2]
[420966170,1776817844058,-200.0,0.00010959,2]
[420966171,1776817844067,-200.0,0.00010959,2]
[420966172,1776817844076,-200.0,0.00010959,2]
[420966173,1776817844086,-200.0,0.00010959,2]
[420966174,1776817844095,-200.0,0.00010959,2]
[420966175,1776817844104,-200.0,0.00010959,2]
[420966176,1776817844113,-200.0,0.00010959,2]
[420966177,1776817844123,-200.0,0.00010959,2]
[420966178,1776817844132,-200.0,0.00010959,2]
[420966179,1776817844142,-200.0,0.00010959,2]
[420966180,1776817844151,-200.0,0.00010959,2]
[420966181,1776817844160,-200.0,0.00010959,2]
[420966182,1776817844169,-200.0,0.00010959,2]
[420966183,1776817844179,-200.0,0.00010959,2]
[420966184,1776817844187,-200.0,0.00010959,2]
[420966185,1776817844197,-200.0,0.00010959,2]
[420966186,1776817844206,-200.0,0.00010959,2]
[420966187,1776817844215,-200.0,0.00010959,2]
[420966188,1776817844224,-200.0,0.00010959,2]
[420966189,1776817844233,-200.0,0.00010959,2]
[420966190,1776817844242,-200.0,0.00010959,2]
[420966191,1776817844251,-200.0,0.00010959,2]
[420966192,1776817844261,-200.0,0.00010959,2]
[420966193,1776817844270,-200.0,0.00010959,2]
[420966194,1776817844279,-200.0,0.00010959,2]
[420966195,1776817844288,-200.0,0.00010959,2]
[420966196,1776817844298,-200.0,0.00010959,2]
[420966197,1776817844307,-200.0,0.00010959,2]
[420966198,1776817844316,-200.0,0.00010959,2]
[420966199,1776817844326,-200.0,0.00010959,2]
[420966200,1776817844335,-200.0,0.00010959,2]
[420966201,1776817844344,-200.0,0.00010959,2]
[420966202,1776817844356,-151.0,0.00010959,2]
[420966203,1776817844365,-151.0,0.00010959,2]
[420966204,1776817844375,-151.0,0.00010959,2]
[420966205,1776817844384,-802.37,0.00010959,2]
[420966206,1776817844394,-151.0,0.00010987,2]
[420966207,1776817844403,-151.0,0.00010987,2]
[420966208,1776817844412,-297.460322,0.00010987,2]
[420966209,1776817844422,-392.086717,0.00010987,2]
[420966210,1776817844431,-392.086717,0.00010987,2]
[420966211,1776817844440,-392.086717,0.00010987,2]
[420966212,1776817844450,-392.086715,0.00010987,2]
[420966213,1776817844459,-56939.6814741,0.00010987,2]
[420966214,1776817844469,-1237.3306148,0.00010987,2]
[420966215,1776817844478,-875.5118827,0.00010987,2]
[420966216,1776817844487,-298.38,0.00010989,2]
[420966217,1776817844496,-427.97,0.00010989,2]
[420966218,1776817844505,-292.56,0.00010989,2]
[420966219,1776817844515,-348.92,0.00010989,2]
[420966220,1776817844524,-219.13,0.00010989,2]
[420966221,1776817844534,-777.84,0.00010989,2]
[420966222,1776817844543,-150.01,0.00010989,2]
[420966223,1776817844553,-600.0,0.0001099,2]
[420966224,1776817844562,-400.0,0.0001099,3]
[420966225,1776817844572,-921.61,0.0001099,2]
[420966226,1776817844581,-736.0,0.00010993,2]
[420966227,1776817844590,-300.0,0.00010998,2]
[420966228,1776817844600,-300.0,0.00010998,2]
[420966229,1776817844609,-300.0,0.00010998,2]
[420966230,1776817844618,-295.90885131,0.00010998,2]
[420966231,1776817844628,-300.0,0.00010998,2]
[420966232,1776817844638,-1150.91933858,0.00010999,3]
[420966233,1776817844647,-209016.80311572,0.00010999,2]
[420966234,1776817844657,-1299.16423538,0.00010999,2]
[420966235,1776817844666,-5199.73068398,0.00010999,2]
[420966236,1776817844675,-266.04312371,0.00010999,2]
[420966237,1776817844685,-300.0,0.00010999,2]
[420966238,1776817844694,-300.0,0.00010999,2]
[420966239,1776817844703,-9873.0,0.00011001,2]
[420966240,1776817844712,-162.83,0.00011003,2]
[420966241,1776817844721,-302.0,0.00011019,3]
[420966242,1776817844731,-575.35,0.0001107,2]
[420966243,1776817844740,-210.0,0.00011073,2]
[420966244,1776817844749,-1600.0,0.00011078,2]
[420966245,1776817844758,-300.0,0.00011098,2]
[420966246,1776817844767,-300.0,0.00011098,2]
[420966247,1776817844777,-300.0,0.00011098,2]
[420966248,1776817844786,-254.88463672,0.00011098,2]
[420966249,1776817844795,-300.0,0.00011098,2]
[420966250,1776817844805,-300.0,0.00011098,2]
[420966251,1776817844814,-300.0,0.00011098,2]
[420966252,1776817844823,-85336.0391453,0.00011099,2]
[420966253,1776817844833,-85336.03914526,0.00011099,2]
[420966254,1776817844843,-85336.03914526,0.00011099,2]
[420966255,1776817844852,-85336.03914526,0.00011099,2]
[420966256,1776817844862,-85336.03914526,0.00011099,2]
[420966257,1776817844871,-85336.03914526,0.00011099,2]
[420966258,1776817844880,-85336.03914526,0.00011099,2]
[420966259,1776817844889,-55456.03067037,0.00011099,2]
[420966260,1776817844899,-55456.03067033,0.00011099,2]
[420966261,1776817844908,-55456.03067033,0.00011099,2]
[420966262,1776817844917,-55456.03067033,0.00011099,2]
[420966263,1776817844927,-55456.03067033,0.00011099,2]
[420966264,1776817844936,-55456.03067033,0.00011099,2]
[420966265,1776817844945,-55456.03067033,0.00011099,2]
[420966266,1776817844955,-611.01651271,0.0001112,2]
[420966267,1776817845000,-922.74431981,0.0001112,2]
[420966268,1776817845017,-338.02416736,0.0001112,2]
[420966269,1776817845026,-192624.14,0.00011161,2]